bitfinex-derivatives/quotes_ETHF0:USTF0_20250926
["timestamp","ask_amount","ask_price","bid_price","bid_amount"]
[1758853311308,0.3873,3956.5,3956.4,2.72369515]
[1758853311619,0.608,3956.5,3956.4,0.71668]
[1758853311818,0.9358,3956.5,3956.4,0.71668]
[1758853313510,0.9358,3956.5,3956.4,0.94408]
[1758853314013,0.9358,3956.5,3956.3,1.56451515]
[1758853314215,0.778,3956.2,3956.0,0.45472]
[1758853314415,0.778,3956.2,3956.1,0.262]
[1758853314806,0.778,3956.2,3956.1,1.82651515]
[1758853315419,0.778,3956.2,3956.1,2.05391515]
[1758853315714,0.778,3956.2,3956.1,1.56451515]
[1758853315932,0.778,3955.9,3955.8,2.01926515]
[1758853316223,0.778,3955.9,3955.8,2.72376515]
[1758853316420,0.778,3956.4,3956.3,0.89718]
[1758853316612,0.778,3956.4,3956.3,2.48730247]
[1758853317119,0.3278,3956.4,3956.3,2.81360247]
[1758853317319,0.0252,3956.5,3956.4,0.3263]
[1758853317521,0.0252,3956.5,3956.4,0.7688]
[1758853317715,0.5573,3957.4,3957.3,0.4425]
[1758853317922,0.778,3957.4,3957.3,1.77062247]
[1758853318124,0.778,3957.4,3957.3,1.81752247]
[1758853318723,1.32909363,3957.4,3957.3,2.03262247]
[1758853319534,0.778,3957.1,3957.0,42.58273247]
[1758853319826,0.5573,3957.1,3957.0,42.84473247]
[1758853320015,0.3278,3957.1,3957.0,43.17103247]
[1758853320217,0.3278,3957.1,3957.0,42.84473247]
[1758853320417,0.7699,3956.3,3956.2,0.4505]
[1758853320615,0.7699,3956.3,3956.2,2.04062247]
[1758853320819,0.5483,3956.9,3956.8,0.68343]
[1758853321017,0.1379,3956.5,3956.2,40.8]
[1758853321216,0.7699,3956.3,3956.2,40.8]
[1758853321417,0.5483,3956.3,3956.2,41.062]
[1758853321619,0.5797,3957.0,3956.9,0.90512]
[1758853321927,0.5744,3957.5,3957.3,0.45457]
[1758853322131,0.5744,3957.5,3957.4,0.262]
[1758853322318,1.45135188,3957.5,3957.4,0.262]
[1758853323621,1.45135188,3957.5,3957.4,1.0383]
[1758853323915,0.9025,3957.5,3957.4,1.0383]
[1758853324320,0.007,3957.8,3957.4,0.5878]
[1758853324516,0.7652,3957.8,3957.7,2.00145247]
[1758853324724,0.7652,3957.8,3956.9,1.13655]
[1758853324725,0.7582,3957.2,3957.1,0.45459]
[1758853324918,0.7582,3956.7,3956.6,0.45466]
[1758853325119,1.30728164,3956.7,3956.6,0.71666]
[1758853327129,0.7582,3956.6,3956.5,0.45466]
[1758853327323,1.30728164,3956.6,3956.5,0.45466]
[1758853327522,0.3122,3956.3,3956.1,0.45471]
[1758853327722,1.30728164,3956.2,3956.1,0.45471]
[1758853328020,0.3122,3955.9,3955.4,0.45478]
[1758853328222,0.447,3955.5,3955.4,0.45478]
[1758853328423,0.447,3955.5,3955.4,0.71678]
[1758853328627,5.68445653,3955.5,3954.6,0.3132]
[1758853328823,0.1348,3955.0,3954.8,0.45486]
[1758853329128,0.86194574,3954.9,3954.7,0.192]
[1758853329426,0.1348,3954.5,3954.2,40.8]
[1758853329622,0.3122,3953.9,3953.6,4.72028187]
[1758853329822,0.3122,3953.9,3953.7,0.71699]
[1758853330024,0.1348,3954.0,3953.9,0.45497]
[1758853330218,0.447,3954.0,3953.9,0.71697]
[1758853330625,0.447,3954.0,3953.9,0.45497]
[1758853330932,0.447,3954.0,3953.8,40.8]
[1758853331120,0.3122,3953.9,3953.8,40.8]
[1758853331624,5.76717,3953.9,3953.8,0.262]
[1758853331824,6.31666605,3953.9,3953.8,0.262]
[1758853332026,6.31666605,3953.9,3953.8,0.06764624]
[1758853332626,6.31666605,3953.9,3952.6,5.03348187]
[1758853332627,0.3122,3953.3,3952.4,0.45513]
[1758853332929,0.3122,3952.9,3952.1,5.03348187]
[1758853333128,0.3122,3952.9,3952.2,41.062]
[1758853333430,0.1348,3953.0,3952.2,41.062]
[1758853333431,0.58987,3953.0,3952.2,41.062]
[1758853333831,0.1348,3953.0,3952.3,0.45515]
[1758853334029,0.3122,3952.9,3952.3,0.45515]
[1758853334331,0.3122,3952.9,3951.5,0.1084]
[1758853334332,0.3122,3952.4,3951.6,0.76842]
[1758853334529,0.3122,3952.4,3951.7,0.262]
[1758853334826,0.3122,3952.4,3951.8,40.8]
[1758853335527,0.3122,3952.4,3951.9,0.262]
[1758853335528,0.1348,3952.0,3951.9,0.262]
[1758853335726,0.1348,3952.0,3951.5,4.72028187]
[1758853335727,0.447,3952.0,3951.5,4.72028187]
[1758853335927,0.3122,3951.9,3951.1,0.3132]
[1758853336129,0.3122,3951.9,3951.0,5.17558187]
[1758853336130,0.3122,3951.4,3950.8,39.435]
[1758853336328,0.1348,3952.0,3951.3,0.45526]
[1758853336329,0.3122,3951.9,3951.3,0.45526]
[1758853336525,0.58999,3952.0,3951.4,0.262]
[1758853336724,0.3122,3951.9,3951.4,0.262]
[1758853336924,0.45523,3951.7,3950.8,0.45531]
[1758853337126,0.3122,3951.6,3950.9,0.7173]
[1758853337323,0.1348,3951.5,3950.9,0.262]
[1758853337624,0.1348,3951.5,3951.0,4.72028187]
[1758853337625,0.3122,3951.5,3951.0,4.72028187]
[1758853337829,0.3122,3951.5,3950.1,5.03348187]
[1758853337830,0.3122,3951.1,3950.1,5.03348187]
[1758853338136,0.3122,3950.9,3950.5,0.45535]
[1758853338336,0.3122,3950.9,3950.6,0.262]
[1758853338626,0.3122,3950.9,3950.6,5.75083187]
[1758853338820,0.3122,3950.9,3950.7,0.45533]
[1758853339027,0.3122,3951.4,3951.3,0.76847]
[1758853339221,0.3375,3951.6,3951.4,0.3132]
[1758853339436,0.3375,3951.6,3951.3,0.262]
[1758853339437,0.3122,3951.5,3951.3,0.262]
[1758853339734,0.3122,3951.4,3951.3,0.262]
[1758853340121,0.3122,3951.4,3951.3,0.5752]
[1758853340835,0.3122,3951.4,3951.3,0.262]
[1758853342941,0.3122,3951.4,3951.3,0.5752]
[1758853343439,0.3122,3951.4,3951.3,0.262]
[1758853343629,0.3122,3951.4,3950.1,0.3132]
[1758853343630,5.3122,3951.4,3950.1,0.3132]
[1758853343828,0.59011,3951.0,3950.4,0.45536]
[1758853344039,0.59011,3951.0,3950.5,0.262]
[1758853344230,0.59011,3951.0,3950.6,40.8]
[1758853344430,0.3122,3950.9,3950.6,41.25534]
[1758853344630,0.1348,3951.0,3950.6,0.45534]
[1758853344930,0.3122,3950.9,3950.6,0.45534]
[1758853345330,0.1348,3951.0,3950.6,0.45534]
[1758853345642,0.3122,3950.9,3950.6,0.45534]
[1758853345942,0.1348,3951.0,3950.6,0.45534]
[1758853346136,0.3122,3950.9,3950.6,0.45534]
[1758853346337,0.1348,3951.0,3950.5,41.062]
[1758853346540,0.1348,3951.0,3950.6,0.45534]
[1758853346736,0.3122,3950.9,3950.7,0.45533]
[1758853346938,0.3122,3950.9,3950.8,0.262]
[1758853347542,0.45532,3950.9,3950.5,40.8]
[1758853347745,0.3122,3950.7,3950.6,0.262]
[1758853348244,0.3122,3950.9,3949.8,0.3132]
[1758853348442,0.1348,3951.0,3949.9,0.262]
[1758853348443,0.447,3950.0,3949.9,0.262]
[1758853348636,0.1348,3950.5,3949.9,0.5752]
[1758853348940,0.447,3950.5,3949.9,0.5752]
[1758853349239,0.3122,3950.4,3950.1,0.4554]
[1758853349442,0.1348,3950.5,3950.2,0.262]
[1758853350139,0.3186,3950.4,3950.2,0.5884]
[1758853350540,0.1348,3950.5,3950.2,0.5884]
[1758853351148,0.3186,3950.4,3950.2,0.262]
[1758853351637,0.1348,3950.5,3950.2,0.71738]
[1758853351838,0.3186,3950.4,3950.2,0.71738]
[1758853352144,0.1348,3950.5,3950.2,0.71738]
[1758853352537,0.3439,3950.8,3950.7,0.45533]
[1758853352740,0.3439,3950.8,3950.7,0.71733]
[1758853352937,0.3439,3950.8,3950.7,1.04373]
[1758853353243,0.0253,3950.8,3950.7,10.76401187]
[1758853353543,0.0253,3950.8,3950.7,41.1264]
[1758853353734,0.3439,3950.8,3950.7,41.062]
[1758853355138,0.3439,3950.8,3950.7,40.8]
[1758853355343,0.0253,3950.8,3950.7,0.262]
[1758853355641,0.0253,3950.8,3950.7,0.5884]
[1758853357232,0.59004,3951.5,3950.7,0.5884]
[1758853357539,0.3186,3951.3,3950.7,0.5884]
[1758853357740,0.3186,3951.1,3950.7,0.262]
[1758853358045,0.59004,3951.5,3951.3,0.45526]
[1758853358046,0.3186,3951.4,3951.3,0.45526]
[1758853358236,0.5498,3951.4,3951.3,0.92656]
[1758853358436,1.09587576,3951.4,3951.3,1.13996]
[1758853358633,0.54607576,3951.4,3951.3,1.46636]
[1758853358836,0.5498,3951.7,3951.6,0.66453]
[1758853359040,0.5498,3951.7,3951.6,0.92653]
[1758853359041,1.09674929,3951.7,3951.6,0.92653]
[1758853359244,1.30664929,3951.7,3951.6,0.262]
[1758853359438,0.1292,3951.5,3951.3,0.262]
[1758853359742,1.30664929,3951.4,3950.6,0.3264]
[1758853360042,0.3186,3950.8,3950.7,0.262]
[1758853360247,0.86554929,3950.8,3950.7,0.262]
[1758853360745,0.54694929,3950.8,3950.7,5.30868187]
[1758853360937,0.3186,3951.2,3951.0,0.4553]
[1758853361140,0.86688476,3951.1,3951.0,0.7817]
[1758853361443,0.54828476,3951.1,3951.0,1.0437]
[1758853361942,0.86688476,3951.1,3951.0,1.0437]
[1758853362444,0.86688476,3951.1,3951.0,0.262]
[1758853363347,1.30798476,3951.1,3951.0,0.262]
[1758853363844,1.30798476,3951.1,3951.0,0.4713]
[1758853364545,1.30798476,3951.1,3951.0,0.22458476]
[1758853365144,0.04185476,3951.1,3951.0,0.87278476]
[1758853365442,0.3186,3951.8,3951.7,0.45522]
[1758853365646,0.3186,3951.8,3951.7,0.71722]
[1758853366648,0.3186,3951.8,3951.7,1.04362]
[1758853366847,0.0253,3951.9,3951.7,0.71722]
[1758853367048,0.0253,3951.9,3951.0,0.1084]
[1758853367049,0.3186,3951.8,3951.0,0.1084]
[1758853367248,0.1292,3951.5,3950.6,5.04668187]
[1758853367450,0.4478,3951.0,3950.9,0.4553]
[1758853368548,0.4478,3951.0,3950.9,0.7173]
[1758853369046,0.4478,3951.0,3950.3,40.8]
[1758853369047,0.4478,3950.5,3950.4,0.45537]
[1758853369251,0.4478,3950.5,3950.4,0.71737]
[1758853370739,0.679,3950.5,3950.4,0.92667]
[1758853370943,0.8889,3950.5,3950.4,0.92667]
[1758853372649,0.8889,3950.5,3950.0,41.1264]
[1758853372650,0.4411,3950.1,3950.0,0.4554]
[1758853372851,0.7597,3950.1,3950.0,0.7174]
[1758853373055,0.7597,3950.1,3950.0,1.1401]
[1758853373243,0.3186,3950.1,3950.0,1.4665]
[1758853373450,0.5498,3950.4,3950.3,0.2093]
[1758853373751,0.7597,3950.4,3950.3,0.2093]
[1758853376051,0.7597,3950.4,3950.3,0.4227]
[1758853376453,0.7597,3950.4,3950.3,0.7491]
[1758853377057,0.7597,3950.4,3950.3,0.4227]
[1758853377255,0.7597,3950.4,3950.3,0.7491]
[1758853377256,0.86896261,3950.4,3950.3,0.7491]
[1758853377457,2.25742449,3950.9,3950.8,0.66462]
[1758853377762,0.99142243,3950.9,3950.8,1.14002]
[1758853378056,1.31002243,3950.9,3950.8,0.6847]
[1758853378261,0.4411,3950.4,3949.7,0.3264]
[1758853378465,0.2312,3949.9,3949.8,1.14014]
[1758853378655,1.10012243,3949.9,3949.8,1.14014]
[1758853379262,0.86892243,3949.9,3949.8,1.46654]
[1758853379563,0.55032243,3949.9,3949.8,1.46654]
[1758853380058,0.86892243,3949.9,3949.8,1.46654]
[1758853380251,1.10012243,3949.9,3949.8,1.46654]
[1758853380455,1.10012243,3949.9,3949.8,1.14014]
[1758853380755,0.55032243,3949.9,3949.8,1.46654]
[1758853380962,1.08442243,3949.9,3949.8,1.46654]
[1758853381958,0.55032243,3949.9,3949.8,1.46654]
[1758853382565,0.3187,3950.8,3950.7,1.22533]
[1758853382765,0.3187,3950.4,3950.1,0.45539]
[1758853382957,0.7474,3950.4,3950.3,0.66937]
[1758853383158,0.7474,3950.4,3950.3,0.89897]
[1758853383358,0.3187,3950.4,3950.3,1.22537]
[1758853383560,0.7474,3950.8,3950.7,0.66932]
[1758853383763,0.7474,3950.8,3950.7,0.93132]
[1758853384267,0.7474,3950.8,3950.7,0.476]
[1758853384464,0.7474,3950.8,3950.7,0.7056]
[1758853384963,0.1292,3951.0,3950.9,0.7562]
[1758853384964,0.5604,3951.0,3950.9,0.7562]
[1758853385159,0.5604,3951.0,3950.9,0.4287]
[1758853386165,0.5604,3951.0,3950.0,0.3275]
[1758853386166,0.9184,3951.0,3950.0,0.3275]
[1758853386362,0.7814,3950.4,3950.1,0.262]
[1758853387061,0.5604,3950.3,3950.2,0.4287]
[1758853387568,0.7814,3950.3,3950.2,0.4287]
[1758853389169,0.5604,3950.7,3950.6,0.88404]
[1758853389376,0.3293,3950.7,3950.6,1.47354]
[1758853389566,0.3681,3951.0,3950.9,0.66431]
[1758853389765,0.1292,3951.5,3951.1,0.45528]
[1758853389962,0.1292,3951.5,3951.2,0.262]
[1758853390168,0.1292,3951.5,3950.3,0.3275]
[1758853390363,0.137,3950.5,3950.4,41.51737]
[1758853390564,0.3293,3950.9,3950.4,41.062]
[1758853390764,0.3293,3951.4,3950.6,0.3275]
[1758853391374,0.3293,3951.4,3951.3,0.45527]
[1758853391666,0.3293,3951.4,3951.3,0.71727]
[1758853391866,0.3546,3951.7,3951.6,0.78273]
[1758853392274,0.3293,3951.7,3951.6,0.78273]
[1758853393181,0.3293,3951.4,3951.0,0.45529]
[1758853393472,0.137,3951.5,3951.1,0.262]
[1758853394072,0.137,3951.0,3950.7,0.45533]
[1758853394275,0.3293,3950.9,3950.8,0.262]
[1758853394476,0.3293,3950.9,3950.0,5.38151897]
[1758853394477,0.137,3950.5,3950.3,0.45538]
[1758853394774,0.4663,3950.5,3950.4,0.262]
[1758853395171,0.137,3950.5,3949.9,40.8]
[1758853395369,0.137,3950.5,3950.0,0.3275]
[1758853395569,0.3293,3950.4,3950.3,0.45537]
[1758853395766,0.59231,3951.0,3950.6,0.45534]
[1758853395767,0.137,3951.0,3950.6,0.45534]
[1758853395978,0.3293,3950.8,3950.6,0.262]
[1758853396277,0.87737331,3950.7,3950.6,0.5895]
[1758853396669,0.87737331,3950.7,3950.6,0.262]
[1758853398482,1.10847331,3950.7,3950.6,0.471]
[1758853398881,1.32947331,3950.7,3950.6,0.471]
[1758853400080,1.32947331,3950.7,3950.6,0.209]
[1758853400280,1.32947331,3950.7,3950.6,0.471]
[1758853400883,1.32947331,3950.7,3950.1,0.209]
[1758853400884,0.2311,3950.2,3950.1,0.209]
[1758853401077,0.6974,3950.5,3950.4,0.45537]
[1758853401280,0.6974,3950.5,3950.4,1.21157]
[1758853401281,0.8802234,3950.5,3950.4,1.21157]
[1758853401572,0.5604,3950.8,3950.7,0.88403]
[1758853401772,1.33224776,3950.8,3950.7,0.92633]
[1758853401973,1.33224776,3950.8,3950.7,0.262]
[1758853402174,1.78756776,3950.8,3950.3,0.45537]
[1758853402385,0.137,3951.0,3949.9,40.8]
[1758853402386,0.2311,3950.2,3950.1,0.4554]
[1758853402581,0.7814,3950.2,3950.1,0.9264]
[1758853402781,0.3293,3950.2,3950.1,1.4736]
[1758853402977,0.2311,3950.7,3950.6,0.88404]
[1758853403179,1.00296859,3950.7,3950.6,1.14604]
[1758853403578,1.33226859,3950.7,3950.6,1.14604]
[1758853405183,1.33226859,3950.7,3950.6,0.471]
[1758853405386,0.7814,3950.3,3950.2,0.45539]
[1758853405580,0.7814,3950.3,3950.2,0.92639]
[1758853406675,0.7814,3950.3,3950.2,1.14609]
[1758853408387,0.7814,3950.3,3949.9,40.8]
[1758853408388,0.137,3950.0,3949.9,40.8]
[1758853408591,0.137,3950.0,3949.0,0.1093]
[1758853408592,0.9184,3950.0,3949.6,0.45546]
[1758853408785,0.9184,3950.0,3949.1,0.3275]
[1758853408786,0.2311,3949.2,3949.1,0.66452]
[1758853408987,0.5604,3949.2,3949.1,0.92652]
[1758853409185,0.7814,3949.2,3949.1,41.72652]
[1758853410192,0.7814,3949.2,3949.1,41.009]
[1758853410492,0.7814,3949.2,3949.1,0.4724]
[1758853410684,0.7814,3949.2,3949.1,0.6909]
[1758853411783,0.7814,3949.2,3948.8,0.45555]
[1758853411983,0.5867,3949.0,3948.9,0.262]
[1758853412286,0.9243,3949.0,3948.9,0.262]
[1758853413889,0.4744,3949.0,3948.9,0.4289]
[1758853414080,0.7,3949.0,3948.9,0.6909]
[1758853414791,0.7002,3949.5,3949.4,0.2104]
[1758853415096,1.47430379,3949.5,3949.4,0.4724]
[1758853415389,1.25000379,3949.5,3949.4,0.6909]
[1758853415591,1.25000379,3949.5,3949.4,1.0173]
[1758853415893,1.25000379,3949.5,3949.4,0.6909]
[1758853416389,1.47430379,3949.5,3949.4,0.6909]
[1758853416586,0.88740379,3949.5,3949.4,0.6909]
[1758853416782,0.7002,3950.0,3949.9,0.4289]
[1758853416983,0.9245,3950.0,3949.9,0.262]
[1758853417892,1.47393061,3950.0,3949.9,0.262]
[1758853418084,0.3376,3949.9,3949.7,0.45544]
[1758853418387,0.7875,3949.8,3949.7,0.66584]
[1758853418591,0.7875,3949.8,3949.7,0.71744]
[1758853418995,0.7875,3949.8,3949.7,1.14634]
[1758853419388,0.7875,3949.8,3949.7,0.92784]
[1758853420086,0.7875,3949.8,3949.7,0.71744]
[1758853420695,0.7875,3949.8,3949.7,0.45544]
[1758853420893,0.7875,3949.8,3949.7,0.71744]
[1758853421088,0.7875,3949.8,3949.7,0.92784]
[1758853421792,0.7875,3949.8,3949.7,0.262]
[1758853422095,0.7875,3949.8,3949.6,0.45545]
[1758853422284,0.4499,3949.8,3949.7,0.262]
[1758853422484,0.4499,3949.8,3949.7,0.6909]
[1758853422993,0.5869,3950.5,3950.4,0.66577]
[1758853423192,1.1364694,3950.5,3950.4,0.66577]
[1758853423394,0.7751694,3950.5,3950.4,1.21067]
[1758853423592,0.9243,3951.0,3950.9,0.66571]
[1758853423789,1.47399011,3951.0,3950.9,0.92771]
[1758853425292,1.47399011,3951.0,3950.9,0.262]
[1758853425493,0.1368,3950.5,3950.1,0.3264]
[1758853425689,0.9243,3950.5,3950.4,0.2104]
[1758853425889,0.9243,3950.5,3950.4,41.0104]
[1758853426287,0.1368,3950.0,3949.9,0.2104]
[1758853426489,0.5867,3950.0,3949.9,0.6909]
[1758853426803,0.3624,3950.0,3949.9,41.4909]
[1758853427096,0.7,3950.0,3949.9,41.4909]
[1758853427902,0.5632,3950.4,3950.3,0.4289]
[1758853428100,0.5632,3950.4,3950.3,0.6909]
[1758853428301,0.1368,3950.0,3949.9,40.8]
[1758853428501,0.4744,3950.0,3949.9,41.062]
[1758853429106,0.4744,3950.0,3949.9,41.51742]
[1758853429300,0.4744,3950.0,3949.9,41.25542]
[1758853429505,0.9243,3950.0,3949.9,0.71742]
[1758853429805,0.5632,3950.0,3949.9,1.47272]
[1758853430102,0.7,3950.0,3949.9,1.14632]
[1758853430402,0.5632,3950.0,3949.9,1.47272]
[1758853430595,0.2256,3950.3,3950.2,0.45539]
[1758853430795,0.5632,3950.3,3950.2,0.88429]
[1758853430992,0.1368,3950.0,3949.9,0.92782]
[1758853431196,0.9243,3950.0,3949.9,0.92782]
[1758853431700,0.4499,3949.8,3949.7,0.45544]
[1758853431902,0.7875,3949.8,3949.7,1.14634]
[1758853433098,0.7875,3949.8,3949.7,0.4724]
[1758853433303,0.7875,3949.8,3949.7,0.262]
[1758853433605,1.33908391,3949.8,3949.7,0.262]
[1758853434500,1.33908391,3949.8,3949.2,0.6659]
[1758853434501,0.7875,3949.3,3949.2,0.6659]
[1758853434805,0.7875,3949.3,3949.2,0.9279]
[1758853435003,0.7875,3949.3,3949.2,0.7175]
[1758853435202,0.7875,3949.3,3949.2,0.262]
[1758853435506,1.33923633,3949.3,3949.2,0.262]
[1758853436402,6.33923633,3949.3,3949.2,0.262]
[1758853436807,6.33923633,3949.3,3948.7,41.25555]
[1758853437003,6.33923633,3949.3,3948.0,0.3264]
[1758853437004,0.7875,3948.9,3948.8,0.262]
[1758853438508,0.7875,3948.9,3948.8,0.6909]
[1758853438703,0.5632,3948.9,3948.8,1.0173]
[1758853439002,0.3376,3948.9,3948.8,1.0173]
[1758853439606,1.24304,3948.9,3948.1,40.8]
[1758853439803,0.5632,3948.2,3948.1,40.8]
[1758853440199,0.3376,3948.2,3948.1,46.11874537]
[1758853440504,0.3146,3948.5,3948.4,0.7789]
[1758853440902,0.8846,3948.5,3948.4,0.2303]
[1758853441106,0.4352,3948.3,3948.2,0.68592]
[1758853441303,0.7498,3948.3,3948.2,0.68592]
[1758853442207,0.7498,3948.3,3948.1,0.262]
[1758853443007,0.3552,3948.0,3947.9,0.02533024]
[1758853443315,0.8846,3948.0,3947.9,0.28733024]
[1758853443910,0.8846,3948.0,3947.9,0.51763024]
[1758853447313,0.8846,3948.0,3947.9,0.28733024]
[1758853447814,0.8846,3948.0,3947.9,0.51143024]
[1758853448208,0.0253,3948.3,3947.9,5.79807561]
[1758853448402,0.0253,3948.3,3948.2,1.22832]
[1758853448608,0.0253,3948.3,3948.2,1.17232]
[1758853448609,0.5939,3948.3,3948.2,1.17232]
[1758853449117,0.5939,3948.3,3948.2,1.49032]
[1758853449617,0.0253,3948.3,3948.2,1.49032]
[1758853450114,0.5939,3948.3,3948.2,1.49032]
[1758853450314,0.5939,3948.3,3948.2,1.17232]
[1758853450917,0.5939,3948.3,3948.2,1.49032]
[1758853453518,0.8147,3948.3,3948.2,1.17232]
[1758853453715,0.8147,3948.3,3947.9,0.02533024]
[1758853453922,0.9159,3948.0,3947.9,0.02533024]
[1758853454118,0.9159,3948.0,3947.9,0.28733024]
[1758853454319,0.6951,3948.0,3947.9,1.06003024]
[1758853454822,0.6951,3948.0,3947.9,5.79807561]
[1758853455323,0.9159,3948.5,3948.4,0.6797]
[1758853455512,0.5686,3948.5,3948.4,1.4903]
[1758853455711,0.9159,3948.5,3948.4,0.9417]
[1758853458325,0.9159,3948.5,3948.4,1.1723]
[1758853458524,0.6951,3948.5,3948.4,1.4903]
[1758853458716,0.6951,3948.5,3948.4,1.1723]
[1758853459921,0.6951,3948.5,3948.4,1.4903]
[1758853460124,0.8147,3948.8,3948.7,0.91026]
[1758853460323,1.3764681,3948.8,3948.7,0.94166]
[1758853461323,1.3764681,3948.8,3948.7,1.17226]
[1758853462417,0.5870681,3948.8,3948.7,6.22830537]
[1758853462724,0.0253,3948.8,3948.7,6.22830537]
[1758853464723,0.0253,3948.8,3948.7,11.22830537]
[1758853466818,0.3469,3949.4,3949.3,0.45549]
[1758853467025,0.1265,3950.0,3949.3,0.45549]
[1758853467026,0.5686,3949.9,3949.8,1.22814]
[1758853467321,0.5686,3949.9,3949.8,1.49014]
[1758853467322,1.13164521,3949.9,3949.8,1.49014]
[1758853467825,0.9159,3949.5,3949.4,0.45547]
[1758853468015,0.9159,3949.5,3949.4,0.71747]
[1758853468524,0.6951,3949.5,3949.4,1.49017]
[1758853469425,0.9159,3949.5,3949.4,0.262]
[1758853469616,1.47611141,3949.5,3949.4,0.262]
[1758853470012,1.47611141,3949.5,3948.6,0.318]
[1758853470013,0.7601,3948.7,3948.6,0.67968]
[1758853470317,0.7601,3948.7,3948.6,0.88948]
[1758853470517,0.7601,3948.7,3948.6,0.94168]
[1758853470720,0.7601,3948.7,3948.6,0.71758]
[1758853470917,0.7601,3948.7,3948.6,0.93768]
[1758853471117,0.7601,3948.7,3948.6,0.67568]
[1758853471318,0.7601,3948.7,3948.6,0.93768]
[1758853471722,0.7601,3948.7,3948.6,1.14748]
[1758853472219,0.4441,3949.0,3948.9,0.45554]
[1758853472525,0.4285,3949.4,3949.1,0.45551]
[1758853472719,1.30639812,3949.3,3949.2,0.262]
[1758853473825,0.1312,3949.0,3948.5,0.45558]
[1758853474024,0.1312,3949.0,3948.4,0.4556]
[1758853474025,0.5597,3948.5,3948.4,0.4556]
[1758853474226,0.5597,3948.5,3948.4,0.7176]
[1758853474621,0.8773,3948.5,3948.4,0.7176]
[1758853475526,0.8773,3948.5,3947.8,0.3263]
[1758853475823,0.8773,3948.5,3947.6,4.73804537]
[1758853475824,0.8773,3948.0,3947.9,0.91088024]
[1758853476024,0.8773,3948.0,3947.9,41.97288024]
[1758853477323,0.8773,3948.5,3948.4,0.8855]
[1758853477523,1.43801006,3948.5,3948.4,0.6919]
[1758853477719,1.43801006,3948.5,3948.4,0.262]
[1758853481529,1.43801006,3948.5,3948.4,0.4821]
[1758853482125,1.43801006,3948.5,3948.4,0.6919]
[1758853482733,0.87831006,3948.5,3948.4,1.0182]
[1758853483532,0.7461,3949.4,3949.3,0.2201]
[1758853483734,1.30658492,3949.4,3949.2,0.262]
[1758853484034,1.30658492,3949.3,3949.2,0.262]
[1758853487035,1.30658492,3949.3,3948.4,0.3263]
[1758853487036,0.8773,3948.5,3948.4,0.6757]
[1758853487337,0.8773,3948.5,3948.4,1.1475]
[1758853488129,1.43791802,3948.5,3948.4,1.1475]
[1758853488732,1.43791802,3948.5,3948.4,0.7176]
[1758853489229,1.43791802,3948.5,3948.4,0.4556]
[1758853491033,0.45561,3948.4,3947.9,40.82533024]
[1758853491243,0.4488,3948.0,3947.9,40.82533024]
[1758853491539,0.3176,3948.0,3947.9,41.41263024]
[1758853493136,0.4488,3948.0,3947.9,41.08633024]
[1758853493439,0.4488,3948.0,3947.9,41.41263024]
[1758853494136,0.4488,3948.0,3947.9,1.04253024]
[1758853494337,0.3176,3948.0,3947.9,1.04253024]
[1758853494545,0.3176,3948.4,3948.3,0.7562]
[1758853494737,1.09157775,3948.4,3948.3,1.0172]
[1758853494937,0.87787775,3948.4,3948.3,1.47281]
[1758853495538,1.30637775,3948.4,3948.3,1.14651]
[1758853497044,1.30637775,3948.4,3948.3,1.47281]
[1758853497843,1.30637775,3948.4,3948.3,1.14651]
[1758853498146,0.8773,3948.0,3947.9,0.70109024]
[1758853498347,0.8773,3948.0,3947.9,0.96209024]
[1758853498645,0.8773,3948.0,3947.9,0.70109024]
[1758853498845,1.43810348,3948.0,3947.9,0.74199024]
[1758853499037,0.8773,3948.0,3947.9,0.74199024]
[1758853499237,0.8773,3948.0,3947.9,0.96209024]
[1758853499540,1.4384075,3948.0,3947.9,0.74199024]
[1758853499837,1.4384075,3948.0,3947.9,0.96209024]
[1758853500046,1.4384075,3948.0,3947.9,1.49819024]
[1758853500347,1.4384075,3948.0,3947.9,1.17189024]
[1758853501041,1.4384075,3948.0,3947.9,0.50643024]
[1758853501236,6.4384075,3948.0,3947.9,0.02533024]
[1758853501547,6.4384075,3948.0,3946.8,0.3262]
[1758853501548,0.7765,3947.4,3947.3,0.45572]
[1758853501849,1.3376075,3947.4,3947.3,41.51672]
[1758853502749,1.3376075,3947.4,3947.3,0.261]
[1758853503554,1.3376075,3947.4,3947.3,0.474]
[1758853504139,1.3376075,3947.4,3947.3,0.6932]
[1758853504338,1.1283075,3947.4,3947.3,0.6932]
[1758853504644,0.5435,3947.8,3947.7,0.4561]
[1758853504847,1.11282981,3947.8,3947.7,1.17278]
[1758853505041,1.11282981,3947.8,3947.7,1.49918]
[1758853505448,1.33832981,3947.8,3947.7,1.17278]
[1758853505743,1.33832981,3947.8,3946.9,40.8]
[1758853505744,0.9055,3947.5,3947.4,0.4557]
[1758853506049,1.47482981,3947.5,3947.4,1.4992]
[1758853506250,1.47482981,3947.5,3947.4,1.1728]
[1758853506546,1.47482981,3947.5,3947.4,0.261]
[1758853507048,1.47482981,3947.5,3947.4,0.7171]
[1758853508946,1.47482981,3947.5,3947.4,0.9671]
[1758853509942,1.47482981,3947.5,3947.4,0.7377]
[1758853510250,1.47482981,3947.5,3947.4,1.19341]
[1758853510545,1.47482981,3947.5,3947.4,0.511]
[1758853510939,1.47482981,3947.5,3947.4,0.9671]